bitfinex-derivatives/quotes_ETHF0:USTF0_20250102
["timestamp","ask_amount","ask_price","bid_price","bid_amount"]
[1735799494423,3.30493912,3406.5,3406.4,41.09407]
[1735799495435,0.455,3406.6,3406.5,0.29406]
[1735799508639,4.59273488,3407.2,3406.8,0.29404]
[1735799508843,2.00434452,3407.2,3407.1,2.59152417]
[1735799509446,2.00434452,3407.2,3407.1,3.02662417]
[1735799509645,0.9198,3407.3,3407.1,2.29751417]
[1735799509839,0.9198,3407.3,3407.2,0.294]
[1735799510041,0.9198,3407.3,3407.2,0.4507]
[1735799510244,0.9198,3407.3,3407.2,0.7447]
[1735799519953,0.3159537,3407.5,3407.2,0.4507]
[1735799520149,0.421,3407.7,3407.4,5.50531417]
[1735799520344,0.421,3407.7,3407.6,0.29397]
[1735799520547,0.421,3407.7,3407.6,41.09397]
[1735799521249,0.421,3407.7,3407.6,0.29397]
[1735799521443,6.63100835,3408.1,3408.0,0.29393]
[1735799521444,0.886,3408.1,3408.0,0.29393]
[1735799521749,0.886,3408.1,3408.0,3.74244417]
[1735799528360,0.886,3408.1,3408.0,1.44493]
[1735799528547,1.17993,3408.1,3407.9,0.29394]
[1735799528753,3.50174,3408.0,3407.5,0.29398]
[1735799528956,3.50174,3408.0,3407.8,0.29395]
[1735799529262,3.2078,3408.0,3407.4,1.151]
[1735799529455,3.2078,3408.0,3407.9,0.29394]
[1735799535061,0.4338,3408.1,3408.0,0.29393]
[1735799535364,0.4338,3408.1,3408.0,2.59144417]
[1735799535859,0.4457,3408.3,3408.2,0.29392]
[1735799537964,0.4393,3408.6,3408.5,0.29389]
[1735799539663,0.4393,3408.6,3408.1,6.36101417]
[1735799539865,0.73319,3408.6,3408.5,0.29389]
[1735799540764,0.4393,3408.6,3408.1,0.8557]
[1735799540968,0.29392,3408.2,3408.1,1.44392]
[1735799541562,0.29392,3408.2,3408.1,1.15]
[1735799541961,0.29392,3408.2,3408.1,1.44393]
[1735799542361,0.29391,3408.3,3408.1,1.44393]
[1735799542561,0.8965,3408.2,3408.1,1.44393]
[1735799542868,1.61162,3408.2,3408.1,1.15]
[1735799543065,1.3177,3408.2,3408.1,1.15]
[1735799543271,1.3177,3408.2,3408.1,1.44393]
[1735799543468,1.61162,3408.2,3408.1,1.44393]
[1735799543768,1.3177,3408.2,3408.1,1.44393]
[1735799543959,1.3177,3408.2,3408.1,1.15]
[1735799544161,1.61162,3408.2,3408.1,1.15]
[1735799545174,1.3177,3408.2,3408.1,1.15]
[1735799545366,1.61162,3408.2,3408.1,1.15]
[1735799546365,1.3177,3408.2,3408.1,1.44393]
[1735799551072,1.61162,3408.2,3408.1,1.44393]
[1735799553072,1.3177,3408.2,3408.1,1.44393]
[1735799555375,0.8694,3408.2,3408.1,1.44393]
[1735799556275,0.4482,3408.2,3408.1,1.44393]
[1735799556675,0.4482,3408.2,3408.1,1.89483]
[1735799560068,4.57822272,3408.4,3408.3,0.29391]
[1735799560674,4.57822272,3408.4,3408.3,2.59142417]
[1735799561379,8.24122272,3408.5,3408.3,2.29751417]
[1735799561573,8.24122272,3408.5,3408.4,0.2939]
[1735799562381,8.69402272,3408.5,3408.4,0.2939]
[1735799564078,9.86080835,3408.5,3408.4,0.2939]
[1735799567984,5.74500835,3408.5,3408.4,0.2939]
[1735799569379,4.59468315,3408.5,3408.4,0.2939]
[1735799569577,4.59468315,3408.5,3408.4,0.64320989]
[1735799569777,4.59468315,3408.5,3408.4,0.2939]
[1735799570188,4.59468315,3408.6,3408.3,2.29751417]
[1735799570481,4.59468315,3408.6,3408.5,0.29389]
[1735799571385,4.59468315,3408.7,3408.3,2.29751417]
[1735799571585,4.59468315,3408.7,3408.6,2.59139417]
[1735799571988,4.59468315,3408.7,3408.6,3.03189417]
[1735799572689,4.59468315,3408.9,3408.8,0.29387]
[1735799572877,4.59468315,3408.9,3408.8,0.65819765]
[1735799574275,4.59468315,3409.2,3409.1,0.29384]
[1735799574480,4.59468315,3409.2,3409.1,1.44384]
[1735799575387,8.26288315,3409.3,3409.2,0.29383]
[1735799579688,3.6682,3409.3,3409.2,0.29383]
[1735799586004,0.4332,3409.4,3409.3,0.29382]
[1735799586205,0.4332,3409.4,3409.3,1.69205746]
[1735799586400,4.59468315,3409.7,3409.3,1.84573205]
[1735799586607,4.59468315,3409.7,3409.6,1.32811323]
[1735799586801,4.59468315,3409.7,3409.6,1.69187522]
[1735799587907,0.4596,3410.0,3409.9,0.29377]
[1735799588107,0.4596,3410.0,3409.9,2.47808323]
[1735799588409,0.4596,3410.0,3409.9,3.73515974]
[1735799589204,0.4596,3410.0,3409.9,1.15]
[1735799589205,0.75336,3410.0,3409.9,1.15]
[1735799592007,0.75336,3410.0,3409.9,1.44377]
[1735799592209,0.75336,3410.0,3409.9,1.15]
[1735799593397,5.34804315,3410.0,3409.9,0.45]
[1735799594516,0.75336,3410.0,3409.9,0.45]
[1735799595112,0.4596,3410.0,3409.4,1.15]
[1735799595409,3.2078,3409.8,3409.4,1.15]
[1735799595609,0.2938,3409.6,3409.5,0.2938]
[1735799595812,0.8919,3409.7,3409.0,2.29138974]
[1735799596005,0.29381,3409.5,3409.4,0.29381]
[1735799596206,0.8919,3409.7,3409.4,0.29381]
[1735799596407,0.2938,3409.6,3409.4,0.29381]
[1735799596607,0.2938,3409.6,3409.5,0.2938]
[1735799597011,0.29381,3409.5,3409.4,0.29381]
[1735799597214,0.29381,3409.5,3409.4,1.44381]
[1735799597611,0.29381,3409.5,3409.4,1.15]
[1735799597914,0.29381,3409.5,3409.4,1.44381]
[1735799598112,4.58170523,3409.6,3409.4,1.15]
[1735799598310,0.7214,3409.5,3409.4,1.15]
[1735799598507,0.7214,3409.5,3409.1,0.29383]
[1735799598711,0.7214,3409.5,3408.9,0.34980602]
[1735799598712,0.29383,3409.3,3409.2,1.15]
[1735799600517,4.87552523,3409.4,3409.2,1.15]
[1735799600716,4.58170523,3409.3,3409.2,1.15]
[1735799601215,4.58170523,3409.3,3409.2,1.44383]
[1735799601817,4.58170523,3409.5,3409.4,0.29381]
[1735799603021,0.2938,3409.6,3409.4,0.29381]
[1735799603825,1.18569,3409.7,3409.2,1.15]
[1735799604023,1.18569,3409.7,3409.4,0.29381]
[1735799604024,4.58170523,3409.6,3409.4,0.29381]
[1735799604921,5.47360523,3409.7,3409.2,1.15]
[1735799605423,0.29382,3409.4,3409.2,1.15]
[1735799605816,0.29382,3409.4,3409.2,1.44383]
[1735799606227,4.58170523,3409.4,3409.2,1.15]
[1735799606515,4.58170523,3409.4,3409.3,0.29382]
[1735799607322,4.87551523,3409.5,3409.3,0.29382]
[1735799607518,4.58170523,3409.5,3409.4,0.29381]
[1735799607815,4.87551523,3409.5,3409.4,0.29381]
[1735799608023,4.58170523,3409.5,3409.4,0.29381]
[1735799608322,4.58170523,3409.6,3409.2,1.15]
[1735799608624,0.2938,3409.5,3409.4,0.29381]
[1735799609320,4.87550523,3409.5,3409.4,0.29381]
[1735799610417,0.29382,3409.3,3409.2,0.29383]
[1735799610728,0.29382,3409.3,3408.3,0.29391]
[1735799610729,0.2939,3408.4,3408.3,0.29391]
[1735799610926,3.2078,3408.8,3408.7,0.29387]
[1735799611627,8.95280835,3408.8,3408.7,0.29387]
[1735799612923,7.79828951,3408.8,3408.7,0.29387]
[1735799614030,8.09215951,3408.8,3408.6,0.29388]
[1735799614227,7.79828951,3408.8,3408.5,1.15]
[1735799614527,0.29388,3408.6,3408.5,1.15]
[1735799617326,4.88436951,3408.6,3408.5,1.15]
[1735799618023,4.59048951,3408.6,3408.2,0.4227]
[1735799618224,3.2078,3408.3,3407.7,2.29138974]
[1735799618420,3.2078,3408.3,3408.0,0.446]
[1735799618421,0.8624,3408.2,3408.0,0.446]
[1735799618626,0.29393,3408.1,3408.0,0.446]
[1735799619127,0.8624,3408.2,3408.0,0.446]
[1735799619329,4.59048951,3408.1,3408.0,0.73993]
[1735799620124,4.88441951,3408.1,3408.0,0.446]
[1735799620825,0.29393,3408.1,3408.0,0.446]
[1735799622535,0.29397,3407.6,3407.4,5.79316974]
[1735799622833,0.29397,3407.6,3407.5,0.4269]
[1735799624034,0.72657,3407.6,3407.5,0.4269]
[1735799625733,0.4326,3407.6,3407.5,0.72088]
[1735799626327,0.72657,3407.6,3407.5,0.72088]
[1735799626526,2.72398974,3407.6,3406.7,2.29138974]
[1735799626734,0.4234,3407.5,3406.8,1.15]
[1735799627034,0.29401,3407.2,3407.0,0.29401]
[1735799627236,0.294,3407.3,3407.1,0.29401]
[1735799627424,0.294,3407.3,3407.2,0.4559]
[1735799630638,0.29401,3407.2,3407.0,0.29401]
[1735799631038,0.29401,3407.1,3407.0,0.29401]
[1735799631738,0.29401,3407.2,3407.0,0.29401]
[1735799632426,0.29401,3407.1,3406.9,0.73682]
[1735799632629,3.2078,3407.4,3406.9,0.73682]
[1735799632630,0.29402,3407.0,3406.9,0.73682]
[1735799632830,0.29402,3407.0,3406.9,0.4428]
[1735799633638,0.29402,3407.0,3406.9,0.73683]
[1735799633939,0.29402,3407.0,3406.9,0.4428]
[1735799634639,0.29402,3407.0,3406.9,0.73683]
[1735799636539,0.29402,3407.0,3406.9,0.4428]
[1735799639741,0.29402,3407.0,3406.9,0.73683]
[1735799640045,0.29402,3407.0,3406.9,0.4428]
[1735799643439,8.48318974,3407.0,3406.1,3.2078]
[1735799643738,0.4639,3406.9,3406.2,0.4553]
[1735799643944,0.29405,3406.7,3406.6,0.29405]
[1735799644939,0.29406,3406.6,3406.5,0.29406]
[1735799645634,0.4639,3406.9,3406.2,0.4553]
[1735799645940,2.72518974,3406.5,3405.7,3.2078]
[1735799646241,0.29411,3406.0,3405.9,1.44411]
[1735799646639,0.29411,3406.0,3405.9,1.15]
[1735799647741,0.29412,3405.8,3405.7,3.2078]
[1735799648939,0.29414,3405.6,3405.5,1.15]
[1735799653242,3.8396,3405.7,3405.4,0.29416]
[1735799653443,0.29415,3405.5,3405.4,0.29416]
[1735799653749,4.13374,3405.7,3405.6,0.29414]
[1735799655141,3.8396,3405.7,3405.6,0.29414]
[1735799655546,4.13373,3405.7,3405.6,0.29414]
[1735799656142,1.14973,3405.7,3405.6,0.29414]
[1735799657148,0.29415,3405.6,3405.5,0.29414]
[1735799658239,1.14974,3405.7,3405.6,0.29414]
[1735799658545,0.2941,3406.1,3406.0,0.29411]
[1735799658848,0.8619,3406.1,3405.4,3.2078]
[1735799659049,0.29414,3405.6,3405.5,0.29414]
[1735799659743,0.29413,3405.7,3405.5,0.29415]
[1735799659947,0.29413,3405.7,3405.6,0.29414]
[1735799662249,0.29414,3405.7,3405.6,0.29413]
[1735799664047,0.29415,3405.6,3405.5,0.29414]
[1735799664847,3.50193,3405.8,3405.7,0.29413]
[1735799665548,3.2078,3405.8,3405.7,0.29413]
[1735799665745,3.27811,3406.0,3405.4,3.2078]
[1735799665950,3.27811,3406.0,3405.9,0.29412]
[1735799666351,0.29412,3405.9,3405.8,0.29412]
[1735799666853,3.27811,3406.0,3405.9,0.29412]
[1735799667153,2.984,3406.0,3405.9,0.29412]
[1735799668255,3.27811,3406.0,3405.9,0.29412]
[1735799671148,0.29411,3406.0,3405.9,0.29412]
[1735799673856,0.8619,3406.1,3405.5,1.151]
[1735799674158,0.29412,3405.9,3405.8,0.29412]
[1735799677162,3.641,3406.1,3406.0,0.29411]
[1735799677462,0.4332,3406.1,3406.0,0.29411]
[1735799677669,0.7273,3406.1,3406.0,0.29411]
[1735799677858,0.4332,3406.1,3406.0,0.29411]
[1735799678355,0.4332,3406.1,3405.8,0.4525]
[1735799678559,0.4332,3406.1,3406.0,0.29411]
[1735799678759,0.7273,3406.1,3406.0,0.29411]
[1735799679561,0.2941,3406.2,3406.1,0.29409]
[1735799679962,0.29409,3406.3,3406.2,0.29408]
[1735799682660,4.59048951,3406.4,3405.9,2.73358974]
[1735799682865,4.59048951,3406.4,3406.3,0.29408]
[1735799683363,4.88455951,3406.4,3406.3,0.29408]
[1735799683569,4.59048951,3406.4,3406.3,0.29408]
[1735799683863,4.88455951,3406.4,3406.3,0.29408]
[1735799684366,0.29407,3406.4,3406.3,0.29408]
[1735799685167,4.59048951,3406.4,3406.3,0.29408]
[1735799686571,4.59048951,3406.7,3406.6,0.29406]
[1735799687461,4.88453951,3406.7,3406.6,0.29406]
[1735799688265,4.59048951,3406.7,3406.6,0.29406]
[1735799688568,4.88453951,3406.7,3406.6,0.29406]
[1735799689465,0.29408,3406.3,3406.2,0.29409]
[1735799689670,0.29409,3406.2,3406.1,3.5019]
[1735799689868,1.16119,3406.2,3406.1,3.5019]
[1735799690466,1.16119,3406.2,3406.1,3.2078]
[1735799691370,0.8671,3406.2,3406.1,3.5019]
[1735799692067,1.16119,3406.2,3406.1,3.5019]
[1735799693282,0.8671,3406.2,3406.1,3.5019]
[1735799693978,4.88456951,3406.4,3406.3,0.29408]
[1735799693979,4.59048951,3406.4,3406.3,0.29408]
[1735799694178,4.88455951,3406.5,3406.4,0.29407]
[1735799694373,4.59048951,3406.5,3406.4,0.29407]
[1735799696376,4.88453951,3406.7,3406.2,0.29409]
[1735799696576,0.29406,3406.6,3406.5,0.29406]
[1735799698979,4.59048951,3406.7,3406.4,0.4485]
[1735799699181,4.59048951,3406.7,3406.6,0.29406]
[1735799700576,11.56330776,3406.9,3406.4,2.73988974]
[1735799700779,11.56330776,3406.9,3406.8,0.29404]
[1735799701083,11.97447511,3406.9,3406.8,0.29404]
[1735799701581,11.97447511,3406.9,3406.8,0.73454]
[1735799701782,7.3839856,3406.9,3406.8,0.73454]
[1735799702682,7.8183856,3406.9,3406.8,0.73454]
[1735799702872,7.40721825,3406.9,3406.8,0.73454]
[1735799707179,6.97281825,3406.9,3406.8,0.73454]
[1735799707581,3.76501825,3406.9,3406.8,0.73454]
[1735799708288,3.76501825,3406.9,3406.8,1.19434]
[1735799708581,5.02368951,3407.2,3406.8,0.9003]
[1735799708786,5.02368951,3407.2,3407.1,0.29401]
[1735799709378,0.4332,3407.2,3407.1,0.29401]
[1735799709585,0.7272,3407.2,3407.1,0.29401]
[1735799709987,0.4332,3407.2,3407.1,0.29401]
[1735799712896,0.30748862,3407.3,3407.2,0.294]
[1735799713390,0.60148862,3407.3,3407.2,0.294]
[1735799714593,0.294,3407.3,3407.2,0.294]
[1735799715289,0.76038862,3407.4,3406.8,0.9003]
[1735799715495,0.72451,3407.2,3407.1,0.29401]
[1735799716591,0.4305,3407.2,3406.8,1.5905]
[1735799716895,0.29403,3406.9,3406.8,1.88453]
[1735799718293,0.29403,3406.9,3406.8,0.29403]
[1735799719293,0.72083,3406.9,3406.8,0.29403]
[1735799719595,0.4268,3406.9,3406.7,3.2078]
[1735799719799,0.29404,3406.8,3406.7,3.50185]
[1735799719993,0.72934,3406.8,3406.7,3.50185]
[1735799721898,0.72934,3406.8,3406.7,3.2078]
[1735799722100,5.31982951,3406.8,3406.7,3.2078]
[1735799722398,5.62731813,3406.8,3406.7,3.2078]
[1735799722599,5.62731813,3406.8,3406.7,3.50185]
[1735799722994,5.62731813,3406.8,3405.9,0.4597]
[1735799722995,0.29406,3406.5,3406.0,3.94307]
[1735799723191,0.8558,3406.4,3406.3,0.29407]
[1735799723393,0.4307,3406.4,3406.3,0.29407]
[1735799723597,0.72257911,3406.7,3406.6,0.29406]
[1735799723799,1.15327911,3406.7,3406.6,0.29406]
[1735799724702,0.73818862,3406.7,3406.6,0.29406]
[1735799725403,5.33047654,3406.7,3406.6,0.29406]
[1735799726295,0.73818862,3406.7,3406.6,0.29406]
[1735799726695,1.1535059,3406.7,3406.6,0.29406]
[1735799727799,0.73818862,3406.7,3406.6,0.29406]
[1735799728304,5.33212733,3406.7,3406.6,0.29406]
[1735799729300,0.73818862,3406.7,3406.6,0.29406]
[1735799730200,0.30748862,3406.7,3406.6,0.29406]
[1735799731308,0.30748862,3406.7,3406.6,0.74596]
[1735799731701,0.30748862,3406.8,3406.7,0.29405]
[1735799732807,0.30748862,3406.9,3406.8,0.29404]
[1735799737111,4.90142733,3406.9,3406.8,0.29404]
[1735799737308,5.31528989,3406.9,3406.8,0.29404]
[1735799738208,4.90142733,3406.9,3406.8,1.33020746]
[1735799743915,0.30748862,3406.9,3406.8,1.33020746]
[1735799745119,0.30748862,3407.0,3406.9,0.29403]
[1735799747419,0.30748862,3407.0,3406.9,0.73833]
[1735799747719,0.60150862,3407.0,3406.9,0.73833]
[1735799748915,0.30748862,3407.0,3406.9,0.73833]
[1735799750012,0.73935624,3407.0,3406.9,0.73833]
[1735799750423,1.03337624,3407.0,3406.9,0.29403]
[1735799751119,6.77838459,3407.0,3406.9,0.29403]
[1735799752119,0.73935624,3407.0,3406.6,0.44]
[1735799752313,2.23100746,3406.9,3406.8,0.29404]
[1735799753221,1.93696746,3406.9,3406.6,1.15]
[1735799753428,1.33021746,3406.7,3406.6,1.44405]
[1735799755823,1.03616746,3406.7,3406.6,1.44405]
[1735799758326,1.03616746,3406.7,3406.4,3.2078]
[1735799758327,0.29406,3406.6,3406.4,3.50187]
[1735799758530,1.33022746,3406.5,3406.4,3.50187]
[1735799758828,1.79072746,3406.5,3406.4,3.50187]
[1735799759925,1.80415608,3406.5,3406.4,3.50187]
[1735799760130,2.24386587,3406.5,3406.4,3.50187]
[1735799761134,1.49666746,3406.5,3406.4,3.50187]
[1735799762539,1.79072746,3406.5,3406.4,3.50187]
[1735799763839,1.79072746,3406.5,3406.4,3.2078]
[1735799764140,1.79072746,3406.5,3406.2,0.4339]
[1735799764141,0.2941,3406.1,3406.0,8.12488972]
[1735799764339,0.2941,3406.1,3406.0,3.5019]
[1735799764740,0.2941,3406.1,3406.0,0.2941]
[1735799765143,0.7257,3406.1,3406.0,0.2941]
[1735799765741,6.48390816,3406.1,3406.0,0.2941]
[1735799767643,0.7257,3406.1,3406.0,0.2941]
[1735799768648,0.4316,3406.1,3406.0,0.2941]
[1735799769845,5.03098673,3406.1,3406.0,0.2941]
[1735799770047,5.32508673,3406.1,3406.0,0.2941]
[1735799770847,6.36125419,3406.1,3406.0,0.2941]
[1735799771348,6.06715419,3406.1,3405.7,2.64636746]
[1735799771548,0.29412,3405.9,3405.8,0.29411]
[1735799771845,1.33028746,3405.9,3405.8,0.29411]
[1735799772843,1.03616746,3405.9,3405.8,0.29411]
[1735799773148,0.29411,3406.0,3405.9,0.29412]
[1735799774243,4.59938673,3406.0,3405.9,0.29412]
[1735799775141,7.58338673,3406.1,3405.9,1.03616746]
[1735799775342,7.58338673,3406.1,3406.0,0.29411]
[1735799777347,2.984,3406.1,3406.0,0.29411]
[1735799779250,5.34337673,3406.2,3406.1,0.2941]
[1735799782044,0.74399,3406.2,3406.1,0.2941]
[1735799783944,0.74399,3406.2,3405.8,1.15]
[1735799783945,0.4499,3406.2,3405.8,1.15]
[1735799784151,1.33028746,3406.0,3405.9,0.29411]
[1735799787455,0.7464,3406.1,3406.0,0.29411]
[1735799788143,9.06945419,3406.2,3405.8,1.15]
[1735799788144,8.03328673,3406.2,3405.9,1.03616746]
[1735799788344,8.03328673,3406.2,3406.1,0.2941]
[1735799790557,7.58338673,3406.2,3406.1,0.2941]
[1735799791058,4.59938673,3406.2,3406.1,0.2941]
[1735799791261,4.59938673,3406.2,3406.1,1.33026746]
[1735799791861,3.8944,3406.5,3406.4,0.29407]
[1735799791862,9.52995419,3406.5,3406.4,0.29407]
[1735799792158,9.82401419,3406.5,3406.4,0.29407]
[1735799793053,5.22462746,3406.5,3406.4,0.29407]
[1735799793460,5.65222746,3406.5,3406.4,0.29407]
[1735799794063,4.93056746,3406.5,3406.4,0.29407]
[1735799794465,5.22462746,3406.5,3406.4,0.29407]
[1735799796763,10.98283562,3406.5,3406.4,0.29407]
[1735799797163,7.99883562,3406.5,3406.4,0.29407]
[1735799797770,2.24062746,3406.5,3406.4,0.29407]
[1735799798466,0.9104,3406.5,3406.4,0.29407]
[1735799798966,0.4557,3406.5,3406.4,0.29407]
[1735799799767,7.78809696,3407.0,3406.9,0.29403]
[1735799799962,7.49407696,3407.0,3406.9,0.29403]
[1735799800171,8.64831054,3407.0,3406.9,0.29403]
[1735799800569,9.684478,3407.0,3406.9,0.29403]
[1735799800963,9.978498,3407.0,3406.9,0.29403]
[1735799801163,8.94233054,3407.0,3406.9,0.29403]
[1735799801369,9.978498,3407.0,3406.9,0.29403]
[1735799801570,1.92145586,3407.0,3406.9,0.29403]
[1735799803468,0.29403,3406.9,3406.8,0.29403]
[1735799803665,1.47976746,3406.9,3406.7,0.4246]
[1735799803874,0.29404,3406.8,3406.7,0.4246]
[1735799805274,0.29405,3406.7,3406.6,1.15]
[1735799805472,1.33021746,3406.7,3406.6,1.15]
[1735799805674,4.53801746,3406.7,3406.6,1.15]
[1735799806068,4.53801746,3406.7,3406.6,1.44406]
[1735799810175,4.53801746,3406.7,3406.6,0.29406]
[1735799810672,4.24396746,3406.7,3406.6,0.29406]
[1735799812177,10.00379138,3406.7,3406.6,0.29406]
[1735799812677,10.29784138,3406.7,3406.6,0.29406]
[1735799813176,4.53801746,3406.7,3406.6,0.29406]
[1735799813378,0.29406,3406.6,3406.5,0.29406]
[1735799813567,1.90336746,3406.6,3406.5,0.29406]
[1735799815581,1.46206746,3406.6,3406.5,0.29406]
[1735799815883,0.4259,3406.6,3406.5,0.29406]
[1735799816475,6.18579942,3406.6,3406.5,0.29406]
[1735799817775,7.22196688,3406.6,3406.5,0.29406]
[1735799818079,7.51602688,3406.6,3406.5,0.29406]
[1735799819975,7.22196688,3406.6,3406.5,0.29406]
[1735799820880,1.46206746,3406.6,3406.5,0.29406]
[1735799821685,7.22196688,3406.6,3406.5,0.29406]
[1735799822284,7.51602688,3406.6,3406.5,0.29406]
[1735799823976,7.22196688,3406.6,3406.3,0.4408]
[1735799824176,1.20067,3406.5,3406.4,0.29407]
[1735799824584,0.9066,3406.5,3406.4,0.29407]
[1735799825085,7.24276688,3406.5,3406.4,0.29407]
[1735799826084,1.48286746,3406.5,3406.4,0.29407]
[1735799827184,1.03616746,3406.8,3406.3,0.4408]
[1735799827388,1.48456746,3406.8,3406.7,0.29405]
[1735799828190,1.79337552,3406.8,3406.7,0.29405]
[1735799828489,1.48456746,3406.8,3406.7,0.29405]
[1735799830495,7.24394209,3406.8,3406.7,0.29405]
[1735799830889,6.20777463,3406.8,3406.7,0.29405]
[1735799834188,5.75937463,3406.8,3406.7,0.29405]
[1735799836094,5.75937463,3406.9,3406.4,1.03616746]
[1735799836299,5.75937463,3406.9,3406.8,0.29404]
[1735799840502,0.5912684,3407.0,3406.9,0.29403]
[1735799841104,0.8852884,3407.0,3406.9,0.29403]
[1735799841500,1.92145586,3407.0,3406.9,0.29403]
[1735799842704,1.93635506,3407.0,3406.9,0.29403]
[1735799843095,1.62743586,3407.0,3406.9,0.29403]
[1735799843999,1.03616746,3407.0,3406.9,0.29403]
[1735799844199,1.3450927,3407.0,3406.9,0.29403]
[1735799844405,1.3450736,3407.0,3406.9,0.29403]
[1735799845000,0.30890614,3407.0,3406.9,0.29403]
[1735799845200,5.42667746,3407.1,3407.0,0.29402]
[1735799845407,5.73559013,3407.1,3407.0,0.29402]
[1735799845808,5.44158013,3407.1,3407.0,0.29402]
[1735799846105,5.73559013,3407.1,3407.0,0.29402]
[1735799846299,5.44158013,3407.1,3407.0,0.29402]
[1735799846507,5.73559013,3407.1,3407.0,0.29402]
[1735799848507,5.44158013,3407.1,3407.0,0.29402]
[1735799848904,5.73559013,3407.1,3407.0,0.29402]
[1735799849809,4.98348013,3407.1,3407.0,0.29402]
[1735799851407,3.94731267,3407.1,3407.0,0.29402]
[1735799853306,3.6384,3407.1,3407.0,0.29402]
[1735799855905,6.91257082,3407.4,3407.0,0.29402]
[1735799856104,6.91257082,3407.4,3407.3,1.33016746]
[1735799856707,6.91257082,3407.5,3407.4,0.29399]
[1735799856905,6.91257082,3407.5,3407.4,1.44399]
[1735799857908,5.76557174,3407.6,3407.5,0.29398]
[1735799858105,5.76557174,3407.6,3407.5,1.78534746]
[1735799858621,5.76557174,3407.6,3407.5,2.20594746]
[1735799858912,4.61082714,3407.7,3407.6,0.29397]
[1735799859118,4.61082714,3407.7,3407.6,1.79643746]
[1735799859919,4.61082714,3407.7,3407.6,5.46276342]
[1735799860217,4.61082714,3408.0,3407.9,0.29394]
[1735799860521,4.61082714,3408.0,3407.9,1.33010746]
[1735799861017,0.4639,3408.1,3407.9,1.03616746]
[1735799861317,0.4639,3408.1,3408.0,0.29393]
[1735799861616,0.4639,3408.1,3408.0,0.75063]
[1735799864616,0.4642,3408.2,3408.1,0.29393]
[1735799864826,4.61082714,3408.3,3408.2,0.29392]
[1735799865021,4.61082714,3408.3,3408.2,1.89952]
[1735799865225,5.76557174,3408.3,3408.2,1.89952]
[1735799866325,8.70199268,3408.8,3408.7,0.29387]
[1735799867426,4.1022,3408.8,3408.7,0.29387]
[1735799869125,4.1022,3408.8,3408.4,1.149]
[1735799869422,4.39607,3408.8,3408.6,0.29388]
[1735799869825,0.29387,3408.7,3408.6,0.29388]
[1735799870027,0.29388,3408.7,3408.5,0.29388]
[1735799870221,0.29388,3408.7,3408.4,1.149]
[1735799870425,4.39607,3408.8,3408.5,0.29389]
[1735799870718,4.39607,3408.8,3408.6,0.29388]
[1735799870922,4.39607,3408.8,3408.2,1.149]
[1735799871115,3.2078,3408.4,3408.3,0.2939]
[1735799871316,3.5017,3408.4,3408.3,0.2939]
[1735799872721,0.29392,3408.3,3407.9,1.149]
[1735799873024,0.29393,3408.1,3408.0,0.29393]
[1735799873618,0.4301,3408.2,3407.7,1.5972]
[1735799873823,0.4301,3408.2,3408.1,0.29393]
[1735799878017,4.59979268,3408.6,3408.0,5.50145641]
[1735799878222,5.06599268,3408.6,3408.5,0.29389]
[1735799879327,0.4662,3408.6,3408.5,0.29389]
[1735799886628,0.4662,3408.6,3408.5,1.44289]
[1735799888138,0.4662,3408.6,3408.5,1.90148068]
[1735799892838,4.59979268,3408.9,3408.8,0.29387]
[1735799893136,4.59979268,3408.9,3408.8,0.75246068]
[1735799894531,0.4276,3409.3,3408.8,0.45859068]
[1735799894737,0.4276,3409.3,3409.2,0.29383]
[1735799898240,5.02739268,3409.3,3409.2,0.29383]
[1735799899450,0.4276,3409.3,3409.2,0.29383]
[1735799900246,0.4276,3409.3,3409.1,0.4494]
[1735799900247,5.76557174,3409.4,3409.3,0.29382]
[1735799900445,5.76557174,3409.4,3409.1,0.4494]
[1735799900446,5.76557174,3409.5,3409.4,0.29381]
[1735799901746,4.60230205,3409.5,3409.4,0.29381]
[1735799902642,4.60230205,3409.5,3409.4,0.73811]
[1735799902836,5.76557174,3409.5,3409.4,4.86686342]
[1735799904343,3.2078,3410.0,3409.4,4.57305342]
[1735799904545,3.2078,3410.0,3409.9,0.29377]
[1735799906739,3.2078,3410.0,3409.7,0.4526]
[1735799906939,0.29378,3409.8,3409.7,1.44278]
[1735799907643,0.4586,3409.9,3409.7,1.44278]
[1735799907844,0.29378,3409.8,3409.7,1.44278]
[1735799908241,0.4586,3409.9,3409.8,0.29378]
[1735799908647,3.2078,3410.0,3409.8,0.4303]
[1735799908849,0.8744,3410.2,3409.9,0.451]
[1735799909047,0.8744,3410.2,3410.1,0.29375]
[1735799911652,0.4335,3410.2,3410.1,0.29375]
[1735799912655,3.2078,3410.4,3410.0,2.29365641]
[1735799912855,3.2078,3410.4,3410.3,0.29374]
[1735799913256,3.2078,3410.4,3410.3,2.58739641]
[1735799916251,0.9247,3410.7,3410.3,2.29365641]
[1735799916457,0.9247,3410.7,3410.6,0.29371]
[1735799916654,0.9247,3410.7,3410.6,1.44171]
[1735799922360,0.9247,3410.7,3410.6,3.73536641]
[1735799923357,0.4613,3410.7,3410.6,3.73536641]
[1735799924865,0.8831,3410.7,3410.6,3.73536641]
[1735799925161,0.8831,3410.7,3410.6,1.44171]
[1735799925162,1.1768,3410.7,3410.6,1.44171]
[1735799926366,1.1768,3410.7,3410.3,0.29373]
[1735799926367,0.29373,3410.4,3410.3,0.29373]
[1735799926765,0.29374,3410.3,3410.2,1.44174]
[1735799926965,0.29374,3410.3,3410.2,0.29374]
[1735799927168,0.29373,3410.4,3410.3,0.29373]
[1735799927656,0.29372,3410.6,3410.5,0.29372]
[1735799928869,0.4218,3410.7,3410.1,1.148]
[1735799929164,0.4218,3410.7,3410.6,0.29371]